fUSD/lending_fUSD_20260518
["ID","MTS","AMOUNT","RATE_DAILY","PERIOD"]
[422524814,1779033612000,-215.59,0.00012182,2]
[422524815,1779033613000,1200.0,0.00030136,120]
[422524820,1779033714000,152.0,0.00011566,2]
[422524821,1779033718000,154.92,0.00011993,2]
[422524823,1779033778000,166.26,5.929e-05,2]
[422524825,1779033779000,166.26,0.00011626,2]
[422524824,1779033779000,166.26,8.777e-05,2]
[422524827,1779033861000,-208.48490792,0.00012221,2]
[422524828,1779033922000,150.0,0.00011708,2]
[422524830,1779033927000,322.11859807,0.0002465,120]
[422524829,1779033927000,35065.91648102,0.000107,2]
[422524832,1779033958000,166.69,0.00011684,2]
[422524836,1779034034000,600.0,0.000115,4]
[422524837,1779034036000,1200.0,0.000116,4]
[422524838,1779034038000,1800.0,0.000117,4]
[422524839,1779034040000,2400.0,0.000118,4]
[422524840,1779034042000,3000.0,0.000119,4]
[422524843,1779034092000,279.94,0.00011598,2]
[422524844,1779034109000,-411.4781,0.00012117,2]
[422524845,1779034118000,1668.5,0.00011624,2]
[422524846,1779034140000,1000.0,0.00030135,120]
[422524848,1779034174000,160.18,0.00011616,2]
[422524865,1779034231000,-300.0,0.00012228,2]
[422524860,1779034231000,-320.02955992,0.00012166,2]
[422524859,1779034231000,-1000.0,0.00012166,2]
[422524861,1779034231000,-145.04035199,0.00012166,2]
[422524858,1779034231000,-860.78968653,0.00012166,2]
[422524862,1779034231000,-218.5498651,0.00012225,2]
[422524864,1779034231000,-1446.1401349,0.00012225,2]
[422524863,1779034231000,-335.31,0.00012225,2]
[422524866,1779034231000,-35.28244937,0.00012228,2]
[422524873,1779034231000,-150.0,0.00012265,2]
[422524867,1779034231000,-390.37271931,0.00012228,2]
[422524870,1779034231000,-7428.44285229,0.00012229,2]
[422524869,1779034231000,-32.05303132,0.00012228,2]
[422524872,1779034231000,-291.30907859,0.00012256,2]
[422524871,1779034231000,-160.0,0.00012232,2]
[422524874,1779034231000,-231.68389097,0.00012265,2]
[422524875,1779034231000,-1138.21481226,0.00012266,2]
[422524876,1779034231000,-2173.24013295,0.00012266,2]
[422524868,1779034231000,-742.2918,0.00012228,2]
[422524881,1779034232000,-404.1598,0.00012266,2]
[422524878,1779034232000,-213.33916598,0.00012266,2]
[422524883,1779034232000,-1198249.28832992,0.00012266,2]
[422524879,1779034232000,-9938.60447338,0.00012266,2]
[422524880,1779034232000,-208.55058758,0.00012266,2]
[422524877,1779034232000,-244.610059,0.00012266,2]
[422524882,1779034232000,-5000.0,0.00012266,2]
[422524899,1779034232000,-431.14113427,0.00012266,2]
[422524886,1779034232000,-11319.16775019,0.00012266,2]
[422524888,1779034232000,-14968.56422397,0.00012266,2]
[422524890,1779034232000,-1623.11679656,0.00012266,2]
[422524893,1779034232000,-1050.0,0.00012266,2]
[422524897,1779034232000,-1728.70844309,0.00012266,2]
[422524895,1779034232000,-609.8984744,0.00012266,2]
[422524885,1779034232000,-88220.62459668,0.00012266,2]
[422524910,1779034237000,-815.00603966,0.00012266,2]
[422524909,1779034237000,-1261.85940046,0.00012266,2]
[422524914,1779034238000,-327.57357332,0.00012266,2]
[422524913,1779034238000,-974.37953422,0.00012266,2]
[422524912,1779034238000,-2217.00000003,0.00012266,2]
[422524911,1779034238000,-400.0,0.00012266,2]
[422524961,1779034240000,-8751.99999984,0.00012266,2]
[422524962,1779034240000,-34067.18777059,0.00012266,2]
[422524963,1779034240000,-2090.40897658,0.00012266,2]
[422524973,1779034242000,-28023.74913751,0.00012266,2]
[422524974,1779034243000,-22416.54727407,0.00012266,2]
[422524980,1779034243000,-63877.49826421,0.00012266,2]
[422524987,1779034243000,-300.0,0.00012365,2]
[422524978,1779034243000,-4896.46376358,0.00012266,2]
[422524981,1779034243000,-2500.0,0.00012266,2]
[422524979,1779034243000,-11679.81651685,0.00012266,2]
[422524983,1779034243000,-300.0,0.00012365,2]
[422524985,1779034243000,-300.0,0.00012365,2]
[422524986,1779034243000,-300.0,0.00012365,2]
[422524982,1779034243000,-325.21,0.00012329,2]
[422524984,1779034243000,-300.0,0.00012365,2]
[422524998,1779034243000,-784.6551,0.00012366,2]
[422524989,1779034243000,-299.04457814,0.00012365,2]
[422524988,1779034243000,-666.0,0.00012365,2]
[422524997,1779034243000,-2647.5431,0.00012366,2]
[422524995,1779034243000,-1775.473,0.00012366,2]
[422524994,1779034243000,-484.14602979,0.00012365,2]
[422524993,1779034243000,-500.0,0.00012365,2]
[422524996,1779034243000,-157.731,0.00012366,2]
[422524999,1779034243000,-227282.1411116,0.00012366,2]
[422525000,1779034243000,-11380.29616725,0.00012366,2]
[422524992,1779034243000,-500.0,0.00012365,2]
[422524990,1779034243000,-500.0,0.00012365,2]
[422524991,1779034243000,-500.0,0.00012365,2]
[422525007,1779034246000,-410.19486052,0.00012366,2]
[422525004,1779034246000,-3131.80853182,0.00012366,2]
[422525006,1779034246000,-51028.1907428,0.00012366,2]
[422525005,1779034246000,-436232.12684631,0.00012366,2]
[422525017,1779034280000,500.0,0.00012365,6]
[422525015,1779034280000,500.0,0.00012365,4]
[422525014,1779034280000,500.0,0.00012365,3]
[422525016,1779034280000,500.0,0.00012365,5]
[422525019,1779034357000,-150.0,0.00012165,2]
[422525021,1779034409000,167.1,0.00011923,2]
[422525020,1779034409000,1814.138,0.00011923,2]
[422525023,1779034437000,221.64,0.0003013,120]
[422525024,1779034453000,500.0,0.0003013,120]
[422525025,1779034467000,166.84,0.00011944,2]
[422525026,1779034473000,500.0,0.0003013,120]
[422525027,1779034505000,2000.0,0.00011523,2]
[422525038,1779034587000,-5000.0,0.00012166,2]
[422525029,1779034587000,1119.1141549,0.00012165,3]
[422525030,1779034587000,-1200.0,0.00012065,2]
[422525032,1779034587000,-7377.63469717,0.00012066,2]
[422525031,1779034587000,-300.0,0.00012065,2]
[422525037,1779034587000,-2500.0,0.00012166,2]
[422525034,1779034587000,-590.396067,0.00012066,2]
[422525035,1779034587000,-163.07337268,0.00012099,2]
[422525033,1779034587000,-1955.91611961,0.00012066,2]
[422525036,1779034587000,-150.0,0.00012165,2]
[422525039,1779034588000,-2963.97974354,0.00012166,2]
[422525041,1779034606000,-2500.0,0.00012066,2]
[422525043,1779034682000,150.0,0.0001147,2]
[422525045,1779034719000,1000.0,0.0003,120]
[422525046,1779034795000,-271.0,0.00012065,2]
[422525048,1779034872000,227.24,0.00011439,2]
[422525049,1779034873000,227.24,0.00011725,2]
[422525052,1779034916000,500.0,0.000116,4]
[422525053,1779034918000,1100.0,0.000117,4]
[422525054,1779034920000,1700.0,0.000118,4]
[422525055,1779034922000,2200.0,0.000119,4]
[422525059,1779034941000,163.51,5.8e-05,2]
[422525064,1779034985000,-227.24,0.00012011,2]
[422525065,1779034994000,500.0,0.00011373,2]
[422525066,1779035003000,200.0,0.00010959,2]
[422525067,1779035004000,200.0,0.00010959,2]
[422525068,1779035004000,200.0,0.00010959,2]
[422525072,1779035014000,160.19,0.00011354,2]
[422525074,1779035028000,1416.13,0.00011354,2]
[422525075,1779035035000,200.0,0.000116,4]
[422525076,1779035038000,400.0,0.000117,4]
[422525077,1779035040000,600.0,0.000118,4]
[422525080,1779035042000,619.1141549,0.000119,4]
[422525079,1779035042000,280.8858451,0.000119,4]
[422525082,1779035078000,661.05,0.00011345,2]
[422525087,1779035153000,947.93,0.00011227,2]
[422525088,1779035165000,151.0,0.0003,120]
[422525090,1779035180000,-642.59283263,0.00012038,2]
[422525091,1779035195000,360.35,0.00030082,120]
[422525095,1779035211000,-123.54274415,0.00012065,2]
[422525094,1779035211000,-150.0,0.00012065,2]
[422525097,1779035235000,500.0,0.000115,4]
[422525098,1779035237000,1100.0,0.000116,4]
[422525099,1779035239000,1700.0,0.000117,4]
[422525101,1779035241000,2300.0,0.000118,4]
[422525102,1779035243000,2900.0,0.000119,4]
[422525113,1779035286000,-163.41,0.00012066,2]
[422525110,1779035286000,-1432.27834672,0.00012066,2]
[422525112,1779035286000,-2035.12714867,0.00012066,2]
[422525111,1779035286000,-7299.47017496,0.00012066,2]
[422525109,1779035286000,-2356.87453633,0.00012066,2]
[422525108,1779035286000,-150.0,0.00012065,2]
[422525107,1779035286000,-1200.0,0.00012065,2]
[422525106,1779035286000,-176.45725585,0.00012065,2]
[422525114,1779035287000,-5000.0,0.00012066,2]
[422525116,1779035287000,-180.76659274,0.00012066,2]
[422525115,1779035287000,-180.76659274,0.00012066,2]
[422525118,1779035287000,-2500.0,0.00012066,2]
[422525119,1779035287000,-25324.84935199,0.00012066,2]
[422525117,1779035287000,-2000.0,0.00012066,2]
[422525120,1779035297000,-50000.0,0.00012066,2]
[422525122,1779035312000,-31581.0,0.00012066,2]
[422525124,1779035336000,166.86,0.00011729,2]
[422525125,1779035340000,1000.0,0.00030134,120]
[422525127,1779035370000,-268.87399231,0.00012065,2]
[422525129,1779035382000,1780.73625506,0.00011966,2]
[422525131,1779035398000,2000.0,0.000114,2]
[422525132,1779035407000,1169.90742515,0.0003,120]
[422525135,1779035432000,-1200.0,0.00012065,2]
[422525138,1779035432000,-889.73795982,0.00012066,2]
[422525136,1779035432000,-150.0,0.00012065,2]
[422525134,1779035432000,-221.87464014,0.00012056,2]
[422525139,1779035432000,-4438.00677323,0.00012066,2]
[422525140,1779035432000,-790.55,0.00012066,2]
[422525141,1779035432000,-268.0,0.00012066,2]
[422525142,1779035432000,-534.06656813,0.00012066,2]
[422525137,1779035432000,-167318.93590854,0.00012066,2]
[422525205,1779035438000,-686.70077882,0.00012066,2]
[422525206,1779035438000,-791.61,0.00012066,2]
[422525237,1779035440000,-300.0,0.00012165,2]
[422525234,1779035440000,-151.0,0.00012163,2]
[422525236,1779035440000,-170.502,0.00012165,2]
[422525232,1779035440000,-5000.0,0.00012066,2]
[422525229,1779035440000,-1188412.61562808,0.00012066,2]
[422525227,1779035440000,-4088.60148055,0.00012066,2]
[422525231,1779035440000,-2500.0,0.00012066,2]
[422525228,1779035440000,-928.86237883,0.00012066,2]
[422525225,1779035440000,-1057.62493441,0.00012066,2]
[422525226,1779035440000,-11850.95752501,0.00012066,2]
[422525224,1779035440000,-11037.88071259,0.00012066,2]
[422525230,1779035440000,-2000.0,0.00012066,2]
[422525235,1779035440000,-1993.721,0.00012165,2]
[422525239,1779035440000,-300.0,0.00012165,2]
[422525233,1779035440000,-178.60417006,0.00012099,2]
[422525242,1779035440000,-300.0,0.00012165,2]
[422525248,1779035440000,-724.44,0.00012166,2]
[422525250,1779035440000,-273.44337302,0.00012166,2]
[422525249,1779035440000,-16004.0,0.00012166,2]
[422525247,1779035440000,-425918.61033359,0.00012166,2]
[422525246,1779035440000,-33183.3746,0.00012166,2]
[422525245,1779035440000,-666.0,0.00012165,2]
[422525243,1779035440000,-300.0,0.00012165,2]
[422525241,1779035440000,-300.0,0.00012165,2]
[422525240,1779035440000,-666.0,0.00012165,2]
[422525238,1779035440000,-300.0,0.00012165,2]
[422525244,1779035440000,-300.0,0.00012165,2]
[422525281,1779035443000,-1582.4,0.00012166,2]
[422525280,1779035443000,-621.0,0.00012166,2]
[422525298,1779035446000,-403.67719235,0.00012166,2]
[422525297,1779035446000,-1366.5041128,0.00012166,2]
[422525299,1779035446000,-401.65716503,0.00012166,2]
[422525301,1779035446000,-1976.21778728,0.00012166,2]
[422525300,1779035446000,-450.335034,0.00012166,2]
[422525303,1779035446000,-369.35667679,0.00012166,2]
[422525302,1779035446000,-6555.62794565,0.00012166,2]
[422525333,1779035456000,150.0,0.00011476,2]
[422525334,1779035474000,500.0,0.00011966,2]
[422525335,1779035480000,33183.3746,0.00011966,2]
[422525336,1779035495000,302032.13985151,0.00011966,2]
[422525337,1779035537000,2713.03771902,0.00011866,2]
[422525338,1779035561000,6569.52315741,0.00011866,2]
[422525341,1779035592000,1678.39818445,0.00011866,2]
[422525342,1779035603000,200.0,0.00011771,2]
[422525344,1779035620000,-151.0,0.00011963,2]
[422525346,1779035620000,170.502,0.00011727,2]
[422525345,1779035620000,2215.748,0.00011727,2]
[422525347,1779035644000,1158.3048,0.00011866,2]
[422525349,1779035673000,776.28,0.00011672,2]
[422525348,1779035673000,776.28,0.00011387,2]
[422525352,1779035805000,173.78,5.794e-05,2]
[422525354,1779035812000,1468.59841135,0.00011866,2]
[422525355,1779035838000,953.82,0.00011324,2]
[422525358,1779035870000,236.71,0.00011276,2]
[422525356,1779035870000,-776.28,0.00011956,2]
[422525357,1779035870000,2500.0,0.00011866,2]
[422525359,1779035902000,508.77,0.0001128,2]
[422525360,1779035921000,228.43,0.00011614,2]
[422525361,1779035948000,5914.51101726,0.00011866,2]
[422525362,1779035952000,-254.0,0.00011964,2]
[422525363,1779035952000,-1200.0,0.00011964,2]
[422525366,1779035952000,-150.0,0.00011964,2]
[422525364,1779035952000,-300.0,0.00011964,2]
[422525367,1779035952000,-3712.5,0.00011965,2]
[422525365,1779035952000,-300.0,0.00011964,2]
[422525368,1779035958000,1826.0,0.00012477,5]
[422525369,1779036003000,1285.02360994,0.00011866,2]
[422525370,1779036008000,4541.87,0.00011274,2]
[422525371,1779036020000,2500.0,0.00011866,2]
[422525372,1779036047000,3033.58458354,0.00011866,2]
[422525373,1779036055000,178.60417006,0.00011879,2]
[422525374,1779036078000,1948.58084663,0.00030136,120]
[422525375,1779036083000,500.0,0.00012065,3]
[422525377,1779036083000,500.0,0.00012065,5]
[422525376,1779036083000,500.0,0.00012065,4]
[422525378,1779036084000,500.0,0.00012065,6]
[422525379,1779036107000,175.05,0.0001125,2]
[422525380,1779036121000,-221.87464015,0.00011956,2]
[422525381,1779036122000,2000.0,0.00011268,2]
[422525382,1779036184000,2500.0,0.00011866,2]
[422525383,1779036193000,1124.39565868,0.00011866,2]
[422525384,1779036194000,150.0,0.00011249,2]
[422525385,1779036203000,200.0,0.00011771,2]
[422525386,1779036239000,150.0,0.00011236,2]
[422525387,1779036254000,180.60080827,0.00011865,2]
[422525388,1779036311000,-1200.0,0.00011964,2]
[422525389,1779036321000,780.0388,0.00011866,2]
[422525390,1779036334000,5323.05991557,0.00011866,2]
[422525391,1779036335000,700.68257008,0.00030136,120]
[422525392,1779036349000,173.04,0.00011574,2]
[422525393,1779036358000,1088.76306743,0.00011965,3]
[422525394,1779036368000,5000.0,0.00011866,2]
[422525395,1779036378000,166.14,8.967e-05,2]
[422525396,1779036384000,1021.03110439,0.00011866,2]
[422525397,1779036410000,-295.08680176,0.00011965,2]
[422525399,1779036412000,310.51,0.00011489,2]
[422525398,1779036412000,310.51,0.00011209,2]
[422525400,1779036412000,310.51,0.0001177,2]
[422525401,1779036415000,1227.66715434,0.00011866,2]
[422525403,1779036510000,5000.0,0.00011866,2]
[422525404,1779036515000,350.0,0.00012226,4]
[422525405,1779036540000,1000.0,0.00030135,120]
[422525406,1779036560000,-150.0,0.00011964,2]
[422525407,1779036561000,2730.22612515,0.00011866,2]
[422525408,1779036564000,1857.0,0.00012477,5]
[422525409,1779036569000,893.40221635,0.00011866,2]
[422525410,1779036613000,843886.9686,0.00011865,2]
[422525413,1779036632000,-5690.72875074,0.00011965,2]
[422525412,1779036632000,-1200.0,0.00011964,2]
[422525414,1779036632000,-2217.8025301,0.00011965,2]
[422525442,1779036632000,-563.02382865,0.00011965,2]
[422525439,1779036632000,-732.37982675,0.00011965,2]
[422525538,1779036638000,-43938.40805541,0.00011966,2]
[422525536,1779036638000,-300.0,0.00011965,2]
[422525530,1779036638000,-300.0,0.00011965,2]
[422525528,1779036638000,-501.24745925,0.00011965,2]
[422525529,1779036638000,-300.0,0.00011965,2]
[422525527,1779036638000,-637.06435844,0.00011965,2]
[422525532,1779036638000,-300.0,0.00011965,2]
[422525526,1779036638000,-29157.28012689,0.00011965,2]
[422525534,1779036638000,-300.0,0.00011965,2]
[422525533,1779036638000,-300.0,0.00011965,2]
[422525535,1779036638000,-666.0,0.00011965,2]
[422525537,1779036638000,-2000.0,0.00011966,2]
[422525539,1779036638000,-575.74586345,0.00011966,2]
[422525531,1779036638000,-300.0,0.00011965,2]
[422525757,1779036640000,-350.0,0.00012056,2]
[422525754,1779036640000,-208.48490792,0.00012012,2]
[422525755,1779036640000,-310.51,0.0001205,2]
[422525753,1779036640000,-213.33916598,0.00011992,2]
[422525756,1779036640000,-173.04,0.00012051,2]
[422525751,1779036640000,-1737.48354152,0.00011992,2]
[422525750,1779036640000,-160.0,0.0001199,2]
[422525749,1779036640000,-150.0,0.00011988,2]
[422525747,1779036640000,-1455169.03408114,0.00011966,2]
[422525748,1779036640000,-350.0,0.0001198,2]
[422525758,1779036640000,-500.0,0.00012065,2]
[422525752,1779036640000,-10810.88657554,0.00011992,2]
[422525741,1779036640000,-316.812,0.00011966,2]
[422525760,1779036640000,-523.42399209,0.00012065,2]
[422525763,1779036640000,-300.0,0.00012091,2]
[422525761,1779036640000,-150.0,0.00012084,2]
[422525762,1779036640000,-732.3798268,0.00012091,2]
[422525764,1779036640000,-300.0,0.00012091,2]
[422525768,1779036640000,-666.0,0.00012091,2]
[422525766,1779036640000,-300.0,0.00012091,2]
[422525765,1779036640000,-300.0,0.00012091,2]
[422525767,1779036640000,-300.0,0.00012091,2]
[422525769,1779036640000,-300.0,0.00012091,2]
[422525770,1779036640000,-63799.0712454,0.00012092,2]
[422525771,1779036640000,-19326.9878154,0.00012092,2]
[422525772,1779036640000,-105309.78657994,0.00012092,2]
[422525774,1779036640000,-1172.59711717,0.00012092,2]
[422525759,1779036640000,-500.0,0.00012065,2]
[422525775,1779036641000,-12096.3361601,0.00012092,2]
[422525776,1779036641000,-5.32166852,0.00012092,2]
[422525783,1779036641000,152.0,0.00011814,2]
[422525793,1779036643000,-420.24775119,0.00012092,2]
[422525792,1779036643000,-6320.0,0.00012092,2]
[422525791,1779036643000,-53295.51097017,0.00012092,2]
[422525790,1779036643000,-297.47656531,0.00012092,2]
[422525796,1779036646000,-565.46132148,0.00012092,2]
[422525795,1779036646000,-9095.453,0.00012092,2]
[422525797,1779036647000,-7928.41636287,0.00012092,2]
[422525802,1779036675000,5000.0,0.00011866,2]
[422525803,1779036682000,989570.33082232,0.00011866,2]
[422525804,1779036694000,229.0,5.922e-05,2]
[422525805,1779036695000,229.0,6.221e-05,2]
[422525807,1779036695000,229.0,6.82e-05,2]
[422525806,1779036695000,229.0,6.521e-05,2]
[422525809,1779036695000,229.0,7.419e-05,2]
[422525810,1779036695000,229.0,7.719e-05,2]
[422525808,1779036695000,229.0,7.12e-05,2]
[422525815,1779036696000,229.0,9.216e-05,2]
[422525814,1779036696000,229.0,8.916e-05,2]
[422525813,1779036696000,229.0,8.617e-05,2]
[422525812,1779036696000,229.0,8.317e-05,2]
[422525811,1779036696000,229.0,8.018e-05,2]
[422525819,1779036697000,229.0,0.00010414,2]
[422525818,1779036697000,229.0,0.00010114,2]
[422525817,1779036697000,229.0,9.815e-05,2]
[422525816,1779036697000,229.0,9.515e-05,2]
[422525820,1779036698000,229.0,0.00010713,2]
[422525821,1779036810000,-229.0,0.00011013,2]
[422525822,1779036874000,342.8,0.00030082,120]
[422525823,1779036914000,2000.0,0.00010953,2]
[422525824,1779036967000,1454.45,0.00010917,2]
[422525825,1779037061000,-582.33,0.00011096,2]
[422525828,1779037156000,577.61138007,8.617e-05,2]
[422525827,1779037156000,315.44579433,8.617e-05,2]
[422525826,1779037156000,770.7589289,8.617e-05,2]
[422525829,1779037177000,1487.0,0.00012477,5]
[422525830,1779037233000,2798.68773875,8.617e-05,2]
[422525831,1779037244000,5865.75645904,8.617e-05,2]
[422525832,1779037257000,166.22900262,8.617e-05,2]
[422525833,1779037269000,2832.95923969,8.617e-05,2]
[422525838,1779037274000,25571.88787288,0.00011,10]
[422525837,1779037274000,50000.0,0.00011,10]
[422525835,1779037274000,32272.12277767,0.00011,10]
[422525836,1779037274000,5871.32889765,0.00011,10]
[422525834,1779037274000,566.79548989,0.00011,10]
[422525839,1779037311000,-1017.092372,0.00011082,2]
[422525840,1779037318000,166.14,8.616e-05,2]
[422525841,1779037334000,329.81,0.00010754,2]
[422525847,1779037436000,-500.0,0.00011082,2]
[422525843,1779037436000,-329.81,0.00011023,2]
[422525844,1779037436000,-500.0,0.00011082,2]
[422525848,1779037436000,-500.0,0.00011082,2]
[422525846,1779037436000,-500.0,0.00011082,2]
[422525845,1779037436000,-500.0,0.00011082,2]
[422525854,1779037437000,-150.0,0.00011248,2]
[422525852,1779037437000,-250.0,0.00011221,2]
[422525855,1779037437000,-329.81,0.00011292,2]
[422525850,1779037437000,-226.38920769,0.00011082,2]
[422525851,1779037437000,-1032.63826349,0.00011138,2]
[422525849,1779037437000,-500.0,0.00011082,2]
[422525853,1779037437000,-168.55,0.00011238,2]
[422525860,1779037460000,-500.0,0.00011512,2]
[422525856,1779037460000,-229.0,0.00011312,2]
[422525857,1779037460000,-392.23507644,0.00011336,2]
[422525858,1779037460000,-150.0,0.0001136,2]
[422525859,1779037460000,-150.0,0.00011471,2]
[422525863,1779037460000,-229.0,0.00011611,2]
[422525864,1779037460000,-160.12,0.00011611,2]
[422525861,1779037460000,-329.81,0.0001156,2]
[422525862,1779037460000,-150.0,0.00011582,2]
[422525865,1779037460000,-208.48490792,0.00011649,2]
[422525871,1779037461000,-500.0,0.00011699,2]
[422525868,1779037461000,-1355.14681575,0.00011666,2]
[422525870,1779037461000,-150.0,0.00011694,2]
[422525869,1779037461000,-500.0,0.00011671,2]
[422525866,1779037461000,-160.0,0.00011653,2]
[422525867,1779037461000,-1200.0,0.00011665,2]
[422525872,1779037462000,208.48490792,0.00011653,2]
[422525873,1779037474000,2927.71829197,0.00011033,2]
[422525874,1779037560000,-300.0,0.00011032,2]
[422525876,1779037578000,155.49,0.00010949,2]
[422525875,1779037578000,155.49,5.584e-05,2]
[422525877,1779037612000,150.0,0.00010701,2]
[422525878,1779037676000,300.0,0.000116,4]
[422525879,1779037678000,700.0,0.000117,4]
[422525880,1779037680000,1100.0,0.000118,4]
[422525881,1779037682000,1400.0,0.000119,4]
[422525882,1779037740000,1000.0,0.00030134,120]
[422525883,1779037759000,1091.02810856,0.00011765,3]
[422525884,1779037776000,500.0,0.000116,4]
[422525885,1779037778000,1100.0,0.000117,4]
[422525887,1779037780000,1700.0,0.000118,4]
[422525886,1779037780000,1786.0,0.00011977,5]
[422525888,1779037783000,2300.0,0.000119,4]
[422525889,1779037785000,421.87121677,0.00029896,120]
[422525890,1779037791000,1000.0,0.00010824,2]
[422525891,1779037793000,727.22,0.00010824,2]
[422525892,1779037812000,-150.0,0.00011032,2]
[422525893,1779037817000,316.40341257,0.00029896,120]
[422525916,1779037831000,-151.0,0.00011663,2]
[422525915,1779037831000,-420.59867807,0.00011656,2]
[422525914,1779037831000,-1215.09876912,0.00011653,2]
[422525912,1779037831000,-165.94101474,0.00011608,2]
[422525913,1779037831000,-1822.46948356,0.00011637,2]
[422525908,1779037831000,-500.0,0.00011591,2]
[422525910,1779037831000,-1822.46948357,0.00011607,2]
[422525911,1779037831000,-15086.41289014,0.00011607,2]
[422525909,1779037831000,-165.34049564,0.00011591,2]
[422525907,1779037831000,-500.0,0.00011591,2]
[422525902,1779037831000,-150.0,0.00011143,2]
[422525917,1779037831000,-151.0,0.00011663,2]
[422525906,1779037831000,-500.0,0.00011591,2]
[422525905,1779037831000,-417.91,0.00011585,2]
[422525904,1779037831000,-212.0,0.00011363,2]
[422525899,1779037831000,-432.02969959,0.00011032,2]
[422525901,1779037831000,-208.48490792,0.00011044,2]
[422525900,1779037831000,-89745.37170803,0.00011033,2]
[422525896,1779037831000,-300.0,0.00011032,2]
[422525898,1779037831000,-508.04170782,0.00011032,2]
[422525897,1779037831000,-259.92859259,0.00011032,2]
[422525903,1779037831000,-150.0,0.00011253,2]
[422525919,1779037831000,-151.0,0.00011663,2]
[422525941,1779037831000,-500.0,0.00011665,2]
[422525920,1779037831000,-500.0,0.00011665,2]
[422525918,1779037831000,-151.0,0.00011663,2]
[422525948,1779037831000,-500.0,0.00011665,2]
[422525950,1779037831000,-500.0,0.00011665,2]
[422525949,1779037831000,-500.0,0.00011665,2]
[422525947,1779037831000,-500.0,0.00011665,2]
[422525943,1779037831000,-206.55502416,0.00011665,2]
[422525942,1779037831000,-500.0,0.00011665,2]
[422525946,1779037831000,-500.0,0.00011665,2]
[422525945,1779037831000,-500.0,0.00011665,2]
[422525940,1779037831000,-500.0,0.00011665,2]
[422525939,1779037831000,-500.0,0.00011665,2]
[422525944,1779037831000,-500.0,0.00011665,2]
[422525926,1779037831000,-388.26124689,0.00011665,2]
[422525937,1779037831000,-500.0,0.00011665,2]
[422525935,1779037831000,-150.68800018,0.00011665,2]
[422525924,1779037831000,-500.0,0.00011665,2]
[422525923,1779037831000,-500.0,0.00011665,2]
[422525932,1779037831000,-500.0,0.00011665,2]
[422525930,1779037831000,-500.0,0.00011665,2]
[422525928,1779037831000,-500.0,0.00011665,2]
[422525922,1779037831000,-500.0,0.00011665,2]
[422525921,1779037831000,-500.0,0.00011665,2]
[422525938,1779037831000,-500.0,0.00011665,2]
[422525952,1779037832000,-5416.45669434,0.00011666,2]
[422525951,1779037832000,-215.29063946,0.00011665,2]
[422525954,1779037832000,-1292.99485248,0.00011666,2]
[422525953,1779037832000,-1822.46948356,0.00011666,2]
[422525955,1779037832000,-5000.0,0.00011666,2]
[422525960,1779037832000,-1285.49221552,0.00011666,2]
[422525956,1779037832000,-478930.72776411,0.00011666,2]
[422525958,1779037832000,-43006.43181308,0.00011666,2]
[422525959,1779037832000,-1641.42458806,0.00011666,2]
[422525961,1779037832000,-9579.8564135,0.00011666,2]
[422525957,1779037832000,-8236.19869473,0.00011666,2]
[422525975,1779037837000,-151.0,0.00011763,2]